[Event "Titled Tuesday Blitz August 22 Early 2023"]
[White "Koutlas, Nikolaos"]
[Black "Morefield, Jason"]
[WhiteFideId "25827138"]
[BlackFideId "30920825"]
[WhiteElo "2532"]
[BlackElo "2699"]
[Result "0-1"]
[Round "9"]
[TimeControl "180+1"]
[Date "2023.08.22"]
[WhiteClock "0:00:18"]
[BlackClock "0:00:02"]
[Board "54"]

1. e4 {[%clk 0:03:00]}  d6 {[%clk 0:02:57]} 2. Nc3 {[%clk 0:02:59]}  Nf6 {[%clk 0:02:58]} 3. f4 {[%clk 0:02:59]}  g6 {[%clk 0:02:57]} 4. Nf3 {[%clk 0:02:59]}  Bg7 {[%clk 0:02:47]} 5. Bc4 {[%clk 0:02:59]}  O-O {[%clk 0:02:47]} 6. O-O {[%clk 0:02:59]}  Nxe4 {[%clk 0:02:47]} 7. Nxe4 {[%clk 0:02:58]}  d5 {[%clk 0:02:47]} 8. Bd3 {[%clk 0:02:53]}  dxe4 {[%clk 0:02:46]} 9. Bxe4 {[%clk 0:02:54]}  c6 {[%clk 0:02:45]} 10. d4 {[%clk 0:02:53]}  Nd7 {[%clk 0:02:39]} 11. c3 {[%clk 0:02:49]}  Nf6 {[%clk 0:02:34]} 12. Bd3 {[%clk 0:02:43]}  Bf5 {[%clk 0:02:31]} 13. Bxf5 {[%clk 0:02:43]}  gxf5 {[%clk 0:02:32]} 14. Ne5 {[%clk 0:02:44]}  e6 {[%clk 0:02:33]} 15. Rf3 {[%clk 0:02:41]}  Ne4 {[%clk 0:02:28]} 16. Be3 {[%clk 0:02:40]}  Rc8 {[%clk 0:02:12]} 17. Rh3 {[%clk 0:02:37]}  Qe8 {[%clk 0:02:04]} 18. Qh5 {[%clk 0:02:29]}  h6 {[%clk 0:02:00]} 19. Rf1 {[%clk 0:02:29]}  Kh7 {[%clk 0:01:55]} 20. Nf3 {[%clk 0:02:22]}  f6 {[%clk 0:01:52]} 21. Qh4 {[%clk 0:02:20]}  Qg6 {[%clk 0:01:40]} 22. Nd2 {[%clk 0:02:18]}  Qg4 {[%clk 0:01:16]} 23. Nxe4 {[%clk 0:02:07]}  Qxh4 {[%clk 0:01:16]} 24. Rxh4 {[%clk 0:02:07]}  fxe4 {[%clk 0:01:16]} 25. f5 {[%clk 0:02:08]}  exf5 {[%clk 0:01:15]} 26. Rxf5 {[%clk 0:02:07]}  Kg6 {[%clk 0:01:09]} 27. Rfh5 {[%clk 0:02:05]}  Rce8 {[%clk 0:01:00]} 28. Bxh6 {[%clk 0:02:04]}  Rh8 {[%clk 0:01:00]} 29. Bxg7 {[%clk 0:01:57]}  Rxh5 {[%clk 0:00:58]} 30. Rxh5 {[%clk 0:01:58]}  Kxh5 {[%clk 0:00:57]} 31. Bxf6 {[%clk 0:01:59]}  e3 {[%clk 0:00:50]} 32. Be5 {[%clk 0:01:57]}  Kg4 {[%clk 0:00:50]} 33. Kf1 {[%clk 0:01:57]}  Kf5 {[%clk 0:00:49]} 34. Ke2 {[%clk 0:01:54]}  Ke4 {[%clk 0:00:49]} 35. g3 {[%clk 0:01:43]}  c5 {[%clk 0:00:40]} 36. h4 {[%clk 0:01:36]}  Re6 {[%clk 0:00:27]} 37. h5 {[%clk 0:01:29]}  Rh6 {[%clk 0:00:17]} 38. g4 {[%clk 0:01:29]}  Rh7 {[%clk 0:00:14]} 39. b4 {[%clk 0:00:46]}  b6 {[%clk 0:00:11]} 40. Bf6 {[%clk 0:00:39]}  cxb4 {[%clk 0:00:06]} 41. c4 {[%clk 0:00:39]}  Kf4 {[%clk 0:00:03]} 42. d5 {[%clk 0:00:34]}  Kxg4 {[%clk 0:00:03]} 43. Kxe3 {[%clk 0:00:34]}  Kf5 {[%clk 0:00:02]} 44. Bd4 {[%clk 0:00:24]}  Rxh5 {[%clk 0:00:02]} 45. c5 {[%clk 0:00:24]}  Rh3+ {[%clk 0:00:03]} 46. Kd2 {[%clk 0:00:24]}  bxc5 {[%clk 0:00:03]} 47. Bxc5 {[%clk 0:00:24]}  a5 {[%clk 0:00:03]} 48. Kc2 {[%clk 0:00:18]}  Rc3+ {[%clk 0:00:02]} 0-1


[Site "https://www.chess.com"]

[Event "Titled Tuesday Blitz August 22 Early 2023"]
[White "Korelskiy, Egor"]
[Black "Karthik Rajaa"]
[WhiteFideId "34329064"]
[BlackFideId "25035215"]
[WhiteElo "2522"]
[BlackElo "2699"]
[Result "0-1"]
[Round "9"]
[TimeControl "180+1"]
[Date "2023.08.22"]
[WhiteClock "0:01:11"]
[BlackClock "0:00:55"]
[Board "55"]

1. e4 {[%clk 0:03:00]}  c6 {[%clk 0:02:59]} 2. d4 {[%clk 0:03:00]}  d5 {[%clk 0:03:00]} 3. f3 {[%clk 0:03:00]}  dxe4 {[%clk 0:02:59]} 4. fxe4 {[%clk 0:03:00]}  e5 {[%clk 0:03:00]} 5. Nf3 {[%clk 0:03:00]}  Bg4 {[%clk 0:03:01]} 6. Bc4 {[%clk 0:02:56]}  Nd7 {[%clk 0:03:00]} 7. c3 {[%clk 0:02:55]}  Bd6 {[%clk 0:03:00]} 8. O-O {[%clk 0:02:55]}  Ngf6 {[%clk 0:02:55]} 9. Be3 {[%clk 0:02:48]}  O-O {[%clk 0:02:49]} 10. Nbd2 {[%clk 0:02:47]}  Qe7 {[%clk 0:02:45]} 11. Qc2 {[%clk 0:02:46]}  b5 {[%clk 0:02:31]} 12. Bb3 {[%clk 0:02:44]}  c5 {[%clk 0:02:31]} 13. a4 {[%clk 0:02:31]}  a6 {[%clk 0:02:06]} 14. h3 {[%clk 0:02:29]}  Bxf3 {[%clk 0:02:02]} 15. Nxf3 {[%clk 0:02:19]}  exd4 {[%clk 0:01:56]} 16. cxd4 {[%clk 0:02:18]}  c4 {[%clk 0:01:55]} 17. Ba2 {[%clk 0:02:16]}  Qxe4 {[%clk 0:01:54]} 18. Qd2 {[%clk 0:02:13]}  Nd5 {[%clk 0:01:52]} 19. Bf2 {[%clk 0:02:07]}  Qf4 {[%clk 0:01:38]} 20. Qa5 {[%clk 0:02:02]}  Bb4 {[%clk 0:01:35]} 21. Bxc4 {[%clk 0:01:39]}  Bxa5 {[%clk 0:01:33]} 22. Bxd5 {[%clk 0:01:39]}  b4 {[%clk 0:01:15]} 23. Bxa8 {[%clk 0:01:35]}  Rxa8 {[%clk 0:01:16]} 24. Rac1 {[%clk 0:01:34]}  Nf6 {[%clk 0:01:11]} 25. Ne5 {[%clk 0:01:31]}  Bb6 {[%clk 0:01:02]} 26. Rc4 {[%clk 0:01:24]}  Ne4 {[%clk 0:00:54]} 27. Rxb4 {[%clk 0:01:18]}  Nxf2 {[%clk 0:00:50]} 28. Rxb6 {[%clk 0:01:02]}  Nxh3+ {[%clk 0:00:49]} 29. gxh3 {[%clk 0:00:59]}  Qxd4+ {[%clk 0:00:49]} 30. Kh1 {[%clk 0:00:59]}  Qxb6 {[%clk 0:00:48]} 31. Nxf7 {[%clk 0:00:59]}  Qb7+ {[%clk 0:00:47]} 32. Kg1 {[%clk 0:00:58]}  Qxf7 {[%clk 0:00:48]} 33. Rxf7 {[%clk 0:00:59]}  Kxf7 {[%clk 0:00:48]} 34. Kf2 {[%clk 0:01:00]}  Ke6 {[%clk 0:00:49]} 35. Ke3 {[%clk 0:01:01]}  Kd5 {[%clk 0:00:49]} 36. Kd3 {[%clk 0:01:02]}  Rb8 {[%clk 0:00:49]} 37. Kc3 {[%clk 0:01:03]}  a5 {[%clk 0:00:49]} 38. b3 {[%clk 0:01:02]}  Rb4 {[%clk 0:00:50]} 39. h4 {[%clk 0:01:03]}  Rxh4 {[%clk 0:00:50]} 40. Kb2 {[%clk 0:01:03]}  Rb4 {[%clk 0:00:50]} 41. Ka3 {[%clk 0:01:04]}  g5 {[%clk 0:00:51]} 42. Ka2 {[%clk 0:01:05]}  g4 {[%clk 0:00:52]} 43. Ka3 {[%clk 0:01:06]}  g3 {[%clk 0:00:52]} 44. Ka2 {[%clk 0:01:06]}  g2 {[%clk 0:00:53]} 45. Ka3 {[%clk 0:01:07]}  h5 {[%clk 0:00:54]} 46. Ka2 {[%clk 0:01:08]}  h4 {[%clk 0:00:55]} 47. Ka3 {[%clk 0:01:09]}  h3 {[%clk 0:00:55]} 48. Ka2 {[%clk 0:01:09]}  h2 {[%clk 0:00:56]} 49. Kb2 {[%clk 0:01:10]}  g1=Q {[%clk 0:00:55]} 50. Ka3 {[%clk 0:01:11]}  Qa1# {[%clk 0:00:55]} 0-1


[Site "https://www.chess.com"]

[Event "Titled Tuesday Blitz August 22 Early 2023"]
[White "Egor_Koshulyan"]
[Black "ATM622"]
[WhiteElo "2683"]
[BlackElo "2528"]
[Result "1-0"]
[Round "9"]
[TimeControl "180+1"]
[Date "2023.08.22"]
[WhiteClock "0:01:28"]
[BlackClock "0:00:29"]
[Board "56"]

1. e4 {[%clk 0:03:00]}  c6 {[%clk 0:02:59]} 2. d4 {[%clk 0:02:56]}  d5 {[%clk 0:02:59]} 3. e5 {[%clk 0:02:55]}  c5 {[%clk 0:02:59]} 4. dxc5 {[%clk 0:02:54]}  e6 {[%clk 0:02:59]} 5. a3 {[%clk 0:02:51]}  Bxc5 {[%clk 0:02:59]} 6. b4 {[%clk 0:02:52]}  Bb6 {[%clk 0:02:59]} 7. Bb2 {[%clk 0:02:52]}  Ne7 {[%clk 0:02:58]} 8. Nf3 {[%clk 0:02:52]}  O-O {[%clk 0:02:58]} 9. Bd3 {[%clk 0:02:53]}  h6 {[%clk 0:02:49]} 10. O-O {[%clk 0:02:52]}  a5 {[%clk 0:02:47]} 11. Nbd2 {[%clk 0:02:52]}  Nd7 {[%clk 0:02:46]} 12. c4 {[%clk 0:02:52]}  dxc4 {[%clk 0:02:43]} 13. Nxc4 {[%clk 0:02:53]}  Bc7 {[%clk 0:02:44]} 14. Qe2 {[%clk 0:02:51]}  Nd5 {[%clk 0:02:19]} 15. Qe4 {[%clk 0:02:48]}  f5 {[%clk 0:02:19]} 16. exf6 {[%clk 0:02:47]}  N7xf6 {[%clk 0:02:19]} 17. Bxf6 {[%clk 0:02:12]}  Qxf6 {[%clk 0:02:20]} 18. Qh7+ {[%clk 0:02:08]}  Kf7 {[%clk 0:02:18]} 19. Rae1 {[%clk 0:02:09]}  Nf4 {[%clk 0:02:10]} 20. Nce5+ {[%clk 0:02:07]}  Ke8 {[%clk 0:01:57]} 21. Bb5+ {[%clk 0:02:03]}  Ke7 {[%clk 0:01:57]} 22. Re4 {[%clk 0:02:04]}  Bxe5 {[%clk 0:01:39]} 23. Nxe5 {[%clk 0:02:01]}  Qg5 {[%clk 0:01:31]} 24. g3 {[%clk 0:02:01]}  Rf5 {[%clk 0:00:47]} 25. Rxf4 {[%clk 0:01:35]}  Rxe5 {[%clk 0:00:46]} 26. h4 {[%clk 0:01:36]}  Qxf4 {[%clk 0:00:40]} 27. gxf4 {[%clk 0:01:36]}  Rxb5 {[%clk 0:00:40]} 28. Qxg7+ {[%clk 0:01:36]}  Kd6 {[%clk 0:00:39]} 29. Rd1+ {[%clk 0:01:32]}  Kc6 {[%clk 0:00:36]} 30. Qd4 {[%clk 0:01:28]}  axb4 {[%clk 0:00:29]} 31. Qd6# {[%clk 0:01:28]} 1-0


[Site "https://www.chess.com"]

[Event "Titled Tuesday Blitz August 22 Early 2023"]
[White "Herman, Daniel"]
[Black "Vlassov, Nikolai"]
[WhiteFideId "30935008"]
[BlackFideId "4103360"]
[WhiteElo "2461"]
[BlackElo "2621"]
[Result "1-0"]
[Round "9"]
[TimeControl "180+1"]
[Date "2023.08.22"]
[WhiteClock "0:00:57"]
[BlackClock "0:00:13"]
[Board "62"]

1. c4 {[%clk 0:03:00]}  e5 {[%clk 0:02:59]} 2. Nf3 {[%clk 0:02:59]}  e4 {[%clk 0:02:54]} 3. Nd4 {[%clk 0:02:58]}  d5 {[%clk 0:02:49]} 4. cxd5 {[%clk 0:02:56]}  Nf6 {[%clk 0:02:49]} 5. Nc3 {[%clk 0:02:42]}  c6 {[%clk 0:02:49]} 6. d3 {[%clk 0:02:37]}  cxd5 {[%clk 0:02:47]} 7. dxe4 {[%clk 0:02:14]}  dxe4 {[%clk 0:02:47]} 8. Bf4 {[%clk 0:02:13]}  Be7 {[%clk 0:02:31]} 9. e3 {[%clk 0:02:13]}  O-O {[%clk 0:02:30]} 10. Be2 {[%clk 0:02:13]}  a6 {[%clk 0:02:21]} 11. O-O {[%clk 0:02:11]}  b5 {[%clk 0:02:21]} 12. Qb3 {[%clk 0:02:06]}  Bb7 {[%clk 0:02:15]} 13. Rfd1 {[%clk 0:02:02]}  Qb6 {[%clk 0:02:14]} 14. a4 {[%clk 0:02:00]}  b4 {[%clk 0:02:11]} 15. a5 {[%clk 0:02:00]}  Qa7 {[%clk 0:02:04]} 16. Nf5 {[%clk 0:01:52]}  Nc6 {[%clk 0:01:47]} 17. Nxe7+ {[%clk 0:01:51]}  Nxe7 {[%clk 0:01:46]} 18. Qxb4 {[%clk 0:01:52]}  Ng6 {[%clk 0:01:46]} 19. Bd6 {[%clk 0:01:39]}  Rfd8 {[%clk 0:01:42]} 20. Qb6 {[%clk 0:01:18]}  Ne8 {[%clk 0:01:25]} 21. Bg3 {[%clk 0:01:12]}  Qxb6 {[%clk 0:00:44]} 22. axb6 {[%clk 0:01:12]}  Ne7 {[%clk 0:00:43]} 23. Na4 {[%clk 0:01:05]}  Bc6 {[%clk 0:00:32]} 24. Nc5 {[%clk 0:01:02]}  Nd5 {[%clk 0:00:17]} 25. b7 {[%clk 0:01:01]}  Bxb7 {[%clk 0:00:13]} 26. Nxb7 {[%clk 0:01:02]}  Rd7 {[%clk 0:00:13]} 27. Nc5 {[%clk 0:01:02]}  Rdd8 {[%clk 0:00:13]} 28. Rxa6 {[%clk 0:00:57]}  Rab8 {[%clk 0:00:13]} 1-0


[Site "https://www.chess.com"]

[Event "Titled Tuesday Blitz August 22 Early 2023"]
[White "Martinez Reyes, Pedro Ramon"]
[Black "Hoang, Thi Bao Tram"]
[WhiteFideId "3901807"]
[BlackFideId "12401102"]
[WhiteElo "2559"]
[BlackElo "2687"]
[Result "1-0"]
[Round "9"]
[TimeControl "180+1"]
[Date "2023.08.22"]
[WhiteClock "0:00:18"]
[BlackClock "0:00:00"]
[Board "67"]

1. d4 {[%clk 0:02:52]}  d5 {[%clk 0:02:59]} 2. c4 {[%clk 0:02:50]}  c6 {[%clk 0:02:59]} 3. Nf3 {[%clk 0:02:48]}  Nf6 {[%clk 0:02:59]} 4. Nc3 {[%clk 0:02:47]}  a6 {[%clk 0:02:59]} 5. c5 {[%clk 0:02:46]}  g6 {[%clk 0:02:50]} 6. Bf4 {[%clk 0:02:43]}  Bg7 {[%clk 0:02:49]} 7. e3 {[%clk 0:02:41]}  O-O {[%clk 0:02:49]} 8. h3 {[%clk 0:02:41]}  Nfd7 {[%clk 0:02:47]} 9. Na4 {[%clk 0:02:28]}  Qa5+ {[%clk 0:02:40]} 10. Nc3 {[%clk 0:02:22]}  e5 {[%clk 0:02:27]} 11. Nxe5 {[%clk 0:02:21]}  Nxe5 {[%clk 0:02:25]} 12. Bxe5 {[%clk 0:02:19]}  Bxe5 {[%clk 0:02:25]} 13. dxe5 {[%clk 0:02:20]}  Nd7 {[%clk 0:02:24]} 14. Qd4 {[%clk 0:02:11]}  Re8 {[%clk 0:02:19]} 15. b4 {[%clk 0:02:07]}  Qa3 {[%clk 0:02:18]} 16. Be2 {[%clk 0:02:00]}  a5 {[%clk 0:02:11]} 17. Rb1 {[%clk 0:01:41]}  axb4 {[%clk 0:02:05]} 18. Rxb4 {[%clk 0:01:42]}  Nf8 {[%clk 0:01:09]} 19. Rb3 {[%clk 0:01:22]}  Qa5 {[%clk 0:01:01]} 20. O-O {[%clk 0:01:19]}  Ne6 {[%clk 0:01:01]} 21. Qb4 {[%clk 0:01:13]}  Nxc5 {[%clk 0:01:00]} 22. Qxa5 {[%clk 0:01:13]}  Rxa5 {[%clk 0:01:01]} 23. Rb4 {[%clk 0:01:12]}  Rxe5 {[%clk 0:01:01]} 24. Rc1 {[%clk 0:01:12]}  Na6 {[%clk 0:00:56]} 25. Rb6 {[%clk 0:01:07]}  Nc7 {[%clk 0:00:51]} 26. Bg4 {[%clk 0:01:00]}  f5 {[%clk 0:00:50]} 27. Be2 {[%clk 0:00:59]}  Kf8 {[%clk 0:00:50]} 28. Kf1 {[%clk 0:00:53]}  Ke7 {[%clk 0:00:50]} 29. Rb2 {[%clk 0:00:53]}  Kd6 {[%clk 0:00:47]} 30. Rd2 {[%clk 0:00:52]}  Rc5 {[%clk 0:00:40]} 31. Rdc2 {[%clk 0:00:49]}  Ra5 {[%clk 0:00:39]} 32. Bf3 {[%clk 0:00:47]}  Bd7 {[%clk 0:00:36]} 33. Rb2 {[%clk 0:00:45]}  b5 {[%clk 0:00:36]} 34. Ne2 {[%clk 0:00:44]}  Re8 {[%clk 0:00:34]} 35. Nf4 {[%clk 0:00:44]}  Rea8 {[%clk 0:00:33]} 36. Rcc2 {[%clk 0:00:39]}  Ne6 {[%clk 0:00:32]} 37. Nd3 {[%clk 0:00:35]}  R8a7 {[%clk 0:00:28]} 38. Nb4 {[%clk 0:00:34]}  Ra4 {[%clk 0:00:27]} 39. Rd2 {[%clk 0:00:34]}  Nc5 {[%clk 0:00:22]} 40. Nxd5 {[%clk 0:00:34]}  cxd5 {[%clk 0:00:15]} 41. Rxd5+ {[%clk 0:00:34]}  Ke6 {[%clk 0:00:15]} 42. Rxc5 {[%clk 0:00:34]}  Rxa2 {[%clk 0:00:15]} 43. Rcc2 {[%clk 0:00:17]}  Rxb2 {[%clk 0:00:14]} 44. Rxb2 {[%clk 0:00:18]}  Kd6 {[%clk 0:00:14]} 45. Ke2 {[%clk 0:00:18]}  Kc5 {[%clk 0:00:14]} 46. Rc2+ {[%clk 0:00:18]}  Kb4 {[%clk 0:00:14]} 47. Bd5 {[%clk 0:00:18]}  Be8 {[%clk 0:00:11]} 48. Rb2+ {[%clk 0:00:19]}  Kc5 {[%clk 0:00:10]} 49. Be6 {[%clk 0:00:17]}  b4 {[%clk 0:00:11]} 50. Kd2 {[%clk 0:00:17]}  Bb5 {[%clk 0:00:10]} 51. Bb3 {[%clk 0:00:18]}  Rd7+ {[%clk 0:00:09]} 52. Kc1 {[%clk 0:00:18]}  Rd3 {[%clk 0:00:08]} 53. Rc2+ {[%clk 0:00:18]}  Kb6 {[%clk 0:00:08]} 54. Kb2 {[%clk 0:00:18]}  Bc6 {[%clk 0:00:08]} 55. g3 {[%clk 0:00:18]}  Rd6 {[%clk 0:00:07]} 56. h4 {[%clk 0:00:19]}  Be4 {[%clk 0:00:06]} 57. Re2 {[%clk 0:00:19]}  Kb5 {[%clk 0:00:06]} 58. f4 {[%clk 0:00:18]}  Rc6 {[%clk 0:00:06]} 59. h5 {[%clk 0:00:17]}  Rc3 {[%clk 0:00:05]} 60. h6 {[%clk 0:00:17]}  Kc5 {[%clk 0:00:05]} 61. Bg8 {[%clk 0:00:17]}  g5 {[%clk 0:00:04]} 62. Bxh7 {[%clk 0:00:17]}  gxf4 {[%clk 0:00:04]} 63. gxf4 {[%clk 0:00:18]}  Kd6 {[%clk 0:00:05]} 64. Bg8 {[%clk 0:00:18]}  Rc1 {[%clk 0:00:01]} 65. Rh2 {[%clk 0:00:18]}  Rh1 {[%clk 0:00:02]} 66. Rxh1 {[%clk 0:00:17]}  Bxh1 {[%clk 0:00:00]} 67. h7 {[%clk 0:00:18]} 1-0


[Site "https://www.chess.com"]

[Event "Titled Tuesday Blitz August 22 Early 2023"]
[White "Skliarov, Viktor"]
[Black "To, Nhat Minh"]
[WhiteFideId "14106736"]
[BlackFideId "729019"]
[WhiteElo "2686"]
[BlackElo "2552"]
[Result "1-0"]
[Round "9"]
[TimeControl "180+1"]
[Date "2023.08.22"]
[WhiteClock "0:01:46"]
[BlackClock "0:00:38"]
[Board "68"]

1. e4 {[%clk 0:03:00]}  c5 {[%clk 0:02:24]} 2. Nf3 {[%clk 0:02:59]}  d6 {[%clk 0:02:24]} 3. d4 {[%clk 0:02:59]}  cxd4 {[%clk 0:02:25]} 4. Qxd4 {[%clk 0:02:59]}  Nf6 {[%clk 0:02:24]} 5. Nc3 {[%clk 0:02:59]}  Nc6 {[%clk 0:02:24]} 6. Bb5 {[%clk 0:02:59]}  Bd7 {[%clk 0:02:24]} 7. Bxc6 {[%clk 0:03:00]}  Bxc6 {[%clk 0:02:25]} 8. Bg5 {[%clk 0:03:00]}  e6 {[%clk 0:02:26]} 9. O-O-O {[%clk 0:03:00]}  Be7 {[%clk 0:02:27]} 10. Rhe1 {[%clk 0:03:00]}  O-O {[%clk 0:02:25]} 11. Kb1 {[%clk 0:03:01]}  Qa5 {[%clk 0:02:07]} 12. Qd2 {[%clk 0:03:00]}  Rfd8 {[%clk 0:01:51]} 13. Nd4 {[%clk 0:03:00]}  h6 {[%clk 0:01:42]} 14. Bh4 {[%clk 0:02:57]}  Rac8 {[%clk 0:01:29]} 15. f3 {[%clk 0:02:56]}  b5 {[%clk 0:01:26]} 16. Nxc6 {[%clk 0:02:11]}  Rxc6 {[%clk 0:01:24]} 17. Nd5 {[%clk 0:02:12]}  Qxd2 {[%clk 0:01:23]} 18. Nxe7+ {[%clk 0:02:12]}  Kf8 {[%clk 0:01:24]} 19. Rxd2 {[%clk 0:02:12]}  Kxe7 {[%clk 0:01:24]} 20. Red1 {[%clk 0:02:13]}  g5 {[%clk 0:01:19]} 21. Bf2 {[%clk 0:02:06]}  Rd7 {[%clk 0:01:12]} 22. h4 {[%clk 0:02:02]}  e5 {[%clk 0:01:06]} 23. Be3 {[%clk 0:01:47]}  Nh7 {[%clk 0:00:38]} 24. Rh1 {[%clk 0:01:46]} 1-0


[Site "https://www.chess.com"]

[Event "Titled Tuesday Blitz August 22 Early 2023"]
[White "Budrewicz, Krzysztof"]
[Black "GaiozNigalidze"]
[WhiteFideId "1127950"]
[WhiteElo "2548"]
[BlackElo "2680"]
[Result "0-1"]
[Round "9"]
[TimeControl "180+1"]
[Date "2023.08.22"]
[WhiteClock "0:00:06"]
[BlackClock "0:00:13"]
[Board "69"]

1. d4 {[%clk 0:03:00]}  Nf6 {[%clk 0:02:53]} 2. c4 {[%clk 0:03:00]}  c5 {[%clk 0:02:51]} 3. d5 {[%clk 0:03:00]}  b5 {[%clk 0:02:51]} 4. Nf3 {[%clk 0:03:00]}  b4 {[%clk 0:02:48]} 5. a3 {[%clk 0:02:59]}  Qb6 {[%clk 0:02:45]} 6. e3 {[%clk 0:02:53]}  g6 {[%clk 0:02:44]} 7. Be2 {[%clk 0:02:50]}  Bg7 {[%clk 0:02:40]} 8. O-O {[%clk 0:02:50]}  O-O {[%clk 0:02:35]} 9. axb4 {[%clk 0:02:50]}  Qxb4 {[%clk 0:02:35]} 10. Nc3 {[%clk 0:02:47]}  Qb6 {[%clk 0:02:26]} 11. e4 {[%clk 0:02:41]}  d6 {[%clk 0:02:25]} 12. e5 {[%clk 0:02:39]}  dxe5 {[%clk 0:02:09]} 13. Nxe5 {[%clk 0:02:38]}  Bb7 {[%clk 0:02:10]} 14. Nd3 {[%clk 0:02:34]}  Nbd7 {[%clk 0:02:07]} 15. Be3 {[%clk 0:02:34]}  Rfc8 {[%clk 0:01:38]} 16. Ra3 {[%clk 0:02:25]}  Qc7 {[%clk 0:01:19]} 17. Bf4 {[%clk 0:02:21]}  Qd8 {[%clk 0:01:19]} 18. Re1 {[%clk 0:02:19]}  Nb6 {[%clk 0:01:18]} 19. b3 {[%clk 0:02:16]}  a6 {[%clk 0:01:09]} 20. Bf3 {[%clk 0:02:13]}  Nfd7 {[%clk 0:01:06]} 21. Ne4 {[%clk 0:02:06]}  Ra7 {[%clk 0:00:59]} 22. Ra2 {[%clk 0:02:03]}  a5 {[%clk 0:00:58]} 23. Qc2 {[%clk 0:01:57]}  h6 {[%clk 0:00:50]} 24. h4 {[%clk 0:01:56]}  a4 {[%clk 0:00:50]} 25. bxa4 {[%clk 0:01:53]}  Ba6 {[%clk 0:00:48]} 26. Nd2 {[%clk 0:01:53]}  Nf6 {[%clk 0:00:45]} 27. g3 {[%clk 0:01:49]}  Nxc4 {[%clk 0:00:45]} 28. Nxc4 {[%clk 0:01:45]}  Nxd5 {[%clk 0:00:45]} 29. Rd1 {[%clk 0:01:10]}  Nc3 {[%clk 0:00:44]} 30. Ra3 {[%clk 0:01:02]}  Bxc4 {[%clk 0:00:34]} 31. Rxc3 {[%clk 0:01:01]}  Bxc3 {[%clk 0:00:34]} 32. Qxc3 {[%clk 0:01:01]}  Bxd3 {[%clk 0:00:32]} 33. Rxd3 {[%clk 0:01:01]}  Qa5 {[%clk 0:00:32]} 34. Qc1 {[%clk 0:00:26]}  Qxa4 {[%clk 0:00:27]} 35. Rd1 {[%clk 0:00:26]}  c4 {[%clk 0:00:25]} 36. Qc3 {[%clk 0:00:20]}  Qb3 {[%clk 0:00:22]} 37. Rc1 {[%clk 0:00:18]}  Qxc3 {[%clk 0:00:20]} 38. Rxc3 {[%clk 0:00:19]}  h5 {[%clk 0:00:20]} 39. Kf1 {[%clk 0:00:18]}  Ra1+ {[%clk 0:00:20]} 40. Kg2 {[%clk 0:00:18]}  Ra2 {[%clk 0:00:21]} 41. Bd5 {[%clk 0:00:18]}  Ra4 {[%clk 0:00:19]} 42. Bc1 {[%clk 0:00:17]}  e6 {[%clk 0:00:19]} 43. Be4 {[%clk 0:00:18]}  Rb4 {[%clk 0:00:19]} 44. Bc2 {[%clk 0:00:18]}  Rb5 {[%clk 0:00:17]} 45. f4 {[%clk 0:00:17]}  Kh7 {[%clk 0:00:16]} 46. Kf3 {[%clk 0:00:18]}  Rbc5 {[%clk 0:00:15]} 47. Ke3 {[%clk 0:00:18]}  Rd5 {[%clk 0:00:15]} 48. Ra3 {[%clk 0:00:18]}  Rb5 {[%clk 0:00:15]} 49. Ra7 {[%clk 0:00:18]}  Kg8 {[%clk 0:00:15]} 50. Bd2 {[%clk 0:00:16]}  Rb2 {[%clk 0:00:15]} 51. Be4 {[%clk 0:00:15]}  c3 {[%clk 0:00:14]} 52. Bc1 {[%clk 0:00:16]}  Rh2 {[%clk 0:00:14]} 53. Ra3 {[%clk 0:00:14]}  c2 {[%clk 0:00:14]} 54. Ra2 {[%clk 0:00:14]}  f5 {[%clk 0:00:14]} 55. Bf3 {[%clk 0:00:13]}  e5 {[%clk 0:00:13]} 56. fxe5 {[%clk 0:00:13]}  Rc3+ {[%clk 0:00:13]} 57. Kf4 {[%clk 0:00:13]}  Rf2 {[%clk 0:00:13]} 58. Be3 {[%clk 0:00:11]}  Rxf3+ {[%clk 0:00:12]} 59. Kxf3 {[%clk 0:00:10]}  c1=Q {[%clk 0:00:12]} 60. Re2 {[%clk 0:00:09]}  Qh1+ {[%clk 0:00:12]} 61. Kf4 {[%clk 0:00:09]}  Qe4+ {[%clk 0:00:12]} 62. Kg5 {[%clk 0:00:09]}  Qg4+ {[%clk 0:00:12]} 63. Kf6 {[%clk 0:00:06]}  Qxe2 {[%clk 0:00:13]} 0-1


[Site "https://www.chess.com"]

[Event "Titled Tuesday Blitz August 22 Early 2023"]
[White "Ovchinnikov, Vsevolod"]
[Black "Shvedova, Alexandra"]
[WhiteFideId "24176842"]
[BlackFideId "54154782"]
[WhiteElo "2654"]
[BlackElo "2551"]
[Result "1/2-1/2"]
[Round "9"]
[TimeControl "180+1"]
[Date "2023.08.22"]
[WhiteClock "0:00:08"]
[BlackClock "0:01:08"]
[Board "70"]

1. d4 {[%clk 0:02:57]}  Nf6 {[%clk 0:02:59]} 2. c4 {[%clk 0:02:57]}  e6 {[%clk 0:03:00]} 3. g3 {[%clk 0:02:57]}  d5 {[%clk 0:03:01]} 4. Nf3 {[%clk 0:02:57]}  dxc4 {[%clk 0:03:01]} 5. Qa4+ {[%clk 0:02:56]}  Nbd7 {[%clk 0:03:00]} 6. Bg2 {[%clk 0:02:55]}  a6 {[%clk 0:03:00]} 7. Qxc4 {[%clk 0:02:55]}  c5 {[%clk 0:03:00]} 8. O-O {[%clk 0:02:51]}  b5 {[%clk 0:02:59]} 9. Qc2 {[%clk 0:02:49]}  Bb7 {[%clk 0:03:00]} 10. Bg5 {[%clk 0:02:31]}  Qb6 {[%clk 0:02:54]} 11. Bxf6 {[%clk 0:01:50]}  Nxf6 {[%clk 0:02:54]} 12. e3 {[%clk 0:01:45]}  cxd4 {[%clk 0:02:49]} 13. Nxd4 {[%clk 0:01:46]}  Rc8 {[%clk 0:02:42]} 14. Qe2 {[%clk 0:01:41]}  Bc5 {[%clk 0:02:38]} 15. Bxb7 {[%clk 0:01:36]}  Qxb7 {[%clk 0:02:39]} 16. Nb3 {[%clk 0:01:36]}  Be7 {[%clk 0:02:36]} 17. N1d2 {[%clk 0:01:36]}  O-O {[%clk 0:02:35]} 18. Rac1 {[%clk 0:01:36]}  Nd5 {[%clk 0:02:30]} 19. Rxc8 {[%clk 0:01:15]}  Rxc8 {[%clk 0:02:29]} 20. Rc1 {[%clk 0:01:16]}  h6 {[%clk 0:02:23]} 21. Qd1 {[%clk 0:01:01]}  Nb4 {[%clk 0:02:16]} 22. a3 {[%clk 0:00:51]}  Nd3 {[%clk 0:02:14]} 23. Rxc8+ {[%clk 0:00:51]}  Qxc8 {[%clk 0:02:15]} 24. Qb1 {[%clk 0:00:52]}  Ne5 {[%clk 0:02:10]} 25. Qc1 {[%clk 0:00:42]}  Qd7 {[%clk 0:02:05]} 26. Nd4 {[%clk 0:00:36]}  b4 {[%clk 0:01:56]} 27. axb4 {[%clk 0:00:35]}  Bxb4 {[%clk 0:01:57]} 28. N2b3 {[%clk 0:00:20]}  Bf8 {[%clk 0:01:53]} 29. Qc2 {[%clk 0:00:18]}  g6 {[%clk 0:01:48]} 30. Nd2 {[%clk 0:00:09]}  a5 {[%clk 0:01:44]} 31. N2f3 {[%clk 0:00:09]}  Nxf3+ {[%clk 0:01:42]} 32. Nxf3 {[%clk 0:00:10]}  Bg7 {[%clk 0:01:41]} 33. b3 {[%clk 0:00:10]}  Qd5 {[%clk 0:01:37]} 34. Nd2 {[%clk 0:00:10]}  h5 {[%clk 0:01:33]} 35. h4 {[%clk 0:00:10]}  Bf6 {[%clk 0:01:30]} 36. Kf1 {[%clk 0:00:09]}  Qe5 {[%clk 0:01:17]} 37. Ke2 {[%clk 0:00:09]}  Qd5 {[%clk 0:01:17]} 38. Qc4 {[%clk 0:00:08]}  Qe5 {[%clk 0:01:13]} 39. Qc8+ {[%clk 0:00:07]}  Kg7 {[%clk 0:01:09]} 40. Qc2 {[%clk 0:00:08]}  Kg8 {[%clk 0:01:07]} 41. Qc8+ {[%clk 0:00:07]}  Kg7 {[%clk 0:01:07]} 42. Qc2 {[%clk 0:00:08]}  Kg8 {[%clk 0:01:08]} 43. Qc8+ {[%clk 0:00:08]} 1/2-1/2


[Site "https://www.chess.com"]